Workbook

Sheet 031
B2: AUTORIDAD PARA EL MANEJO SUSTENTABLE DE LA CUENCA Y DEL LAGO DE AMATITLÁN
B3: NOMINA CORRESPONDIENTE AL MES DE ABRIL 2018
B4: NÚMERO 13-2018
B5: RENGLÓN 031 "JORNALES"
D7: SOLICITUD DE PAGO
B9: SUBPRODUCTO: DIRECCIÓN Y COORDINACIÓN 001-001-0001
B10: 11130016-219-00-33-00-000-001-000-031-0115-11-0000-0000
B13: No. | C13: PUESTO | D13: Titulo Jornal Diario | E13: Empleado | F13: Contrato | G13: Fecha de Ingreso | H13: Jornal | I13: Días | J13: Renglón 031 | K13: Renglón 033 | L13: Renglón 033 | M13: Total Devengado Mensual | N13: Deducciones | Q13: Total Deducciones | R13: Liquido | S13: Número de Cuenta
N14: 201 | O14: 211 | P14: 120
J15: Jornales | K15: Bono 66-2000 | L15: complemento específico por nivelación | N15: IGSS | O15: Retenciones Judiciales | P15: Decreto 81-70
B16: 1 | C16: Encargada de Limpieza | D16: Conserje | E16: Gladis Mirtala Ramírez Sánchez | F16: 01-2018-031-AMSA | G16: 2008-01-02 | H16: 71.4 | I16: 30 | J16: =H16*I16 -> 2142 | K16: 250 | L16: =18.76*I16 -> 562.8 | M16: =SUM(J16:L16) -> 2954.8 | N16: =ROUND((J16+L16)*4.83%,2) -> 130.64 | O16: 0 | P16: 0 | Q16: =SUM(N16:P16) -> 130.64 | R16: =+M16-Q16 -> 2824.16 | S16: 3216012953
B17: 2 | D17: Conserje | E17: Vidal Cruz Martínez | F17: 02-2018-031-AMSA | G17: 2002-02-02 | H17: 71.4 | I17: 30 | J17: 2142 | K17: 250 | L17: =18.76*I17 -> 562.8 | M17: 2954.8 | N17: 130.64 | O17: 0 | P17: 0 | Q17: 130.64 | R17: 2824.16 | S17: 3216001970
B18: 3 | C18: Jardinero | D18: Conserje | E18: Victorina de Jesús Peralta Peralta | F18: 03-2018-031-AMSA | G18: 01/10/2014 | H18: 71.4 | I18: 30 | J18: 2142 | K18: 250 | L18: 562.8 | M18: 2954.8 | N18: 130.64 | O18: 0 | P18: 0 | Q18: 130.64 | R18: 2824.16 | S18: 3393002669
B19: 4 | D19: Conserje | E19: Sara Adelaida Quevedo Alcántara | F19: 04-2018-031-AMSA | G19: 03/12/2012 | H19: 71.4 | I19: 30 | J19: 2142 | K19: 250 | L19: 562.8 | M19: 2954.8 | N19: 130.64 | O19: 0 | P19: 0 | Q19: 130.64 | R19: 2824.16 | S19: 4322082859
B20: 5 | C20: Encargada de Limpieza | D20: Conserje | E20: Elida Etelvina Obando Hernandez | F20: 05-2018-031-AMSA | G20: 25/10/2013 | H20: 71.4 | I20: 30 | J20: 2142 | K20: 250 | L20: 562.8 | M20: 2954.8 | N20: 130.64 | O20: 0 | P20: 0 | Q20: 130.64 | R20: 2824.16 | S20: 4654012114
B21: 6 | C21: Encargada de Limpieza | D21: Conserje | E21: Yomara Ninett Escobar Calderón | F21: 06-2018-031-AMSA | G21: 03/10/2014 | H21: 71.4 | I21: 30 | J21: 2142 | K21: 250 | L21: 562.8 | M21: 2954.8 | N21: 130.64 | O21: 0 | P21: 0 | Q21: 130.64 | R21: 2824.16 | S21: 3164072096
B22: 7 | D22: Conserje | E22: Jacqueline Victoria Noj Carrera | F22: 07-2018-031-AMSA | G22: 01/01/2018 | H22: 71.4 | I22: 30 | J22: =H22*I22 -> 2142 | K22: 250 | L22: 562.8 | M22: =SUM(J22:L22) -> 2954.8 | N22: =ROUND((J22+L22)*4.83%,2) -> 130.64 | O22: 0 | P22: 0 | Q22: =SUM(N22:P22) -> 130.64 | R22: =+M22-Q22 -> 2824.16 | S22: 3759034879
B23: 8 | C23: Peon Vigilante | D23: Peón Vigilante V | E23: Estuardo Randolfo Gutierrez Cruz | F23: 08-2018-031-AMSA | G23: 2017-03-01 | H23: 75.64 | I23: 30 | J23: =H23*I23 -> 2269.2 | K23: 250 | L23: =14.52*I23 -> 435.6 | M23: =SUM(J23:L23) -> 2954.8 | N23: =ROUND((J23+L23)*4.83%,2) -> 130.64 | O23: 0 | P23: 0 | Q23: =SUM(N23:P23) -> 130.64 | R23: =+M23-Q23 -> 2824.16 | S23: 3607017078
B24: 9 | C24: Peon Vigilante | D24: Peón Vigilante V | E24: Biayner Soto Arana | F24: 09-2018-031-AMSA | G24: 2017-02-20 | H24: 75.64 | I24: 30 | J24: 2269.2 | K24: 250 | L24: =14.52*I24 -> 435.6 | M24: 2954.8 | N24: 130.64 | O24: 0 | P24: 0 | Q24: 130.64 | R24: 2824.16 | S24: 3287038944
B25: 10 | C25: Peon Vigilante | D25: Peón Vigilante V | E25: Hamilton Wilfredo Hernández Hernández | F25: 11-2018-031-AMSA | G25: 2017-02-20 | H25: 75.64 | I25: 30 | J25: 2269.2 | K25: 250 | L25: 435.6 | M25: 2954.8 | N25: 130.64 | O25: 0 | P25: 0 | Q25: 130.64 | R25: 2824.16 | S25: 3287039080
B26: 11 | C26: Peon Vigilante | D26: Peón Vigilante V | E26: Hugo Concepcion Escobar Veliz | F26: 12-2018-031-AMSA | G26: 2017-02-20 | H26: 75.64 | I26: 30 | J26: 2269.2 | K26: 250 | L26: 435.6 | M26: 2954.8 | N26: 130.64 | O26: 0 | P26: 0 | Q26: 130.64 | R26: 2824.16 | S26: 3759033361
B27: 12 | C27: Peon Vigilante | D27: Peón Vigilante V | E27: Nazario Hernández Osorio | F27: 13-2018-031-AMSA | G27: 2017-02-20 | H27: 75.64 | I27: 30 | J27: 2269.2 | K27: 250 | L27: 435.6 | M27: 2954.8 | N27: 130.64 | O27: 0 | P27: 0 | Q27: 130.64 | R27: 2824.16 | S27: 3364085352
B28: 13 | C28: Peon Vigilante | D28: Peón Vigilante V | E28: Candido Samayoa y Samayoa | F28: 14-2018-031-AMSA | G28: 2017-02-20 | H28: 75.64 | I28: 30 | J28: 2269.2 | K28: 250 | L28: 435.6 | M28: 2954.8 | N28: 130.64 | O28: 0 | P28: 0 | Q28: 130.64 | R28: 2824.16 | S28: 3532020817
B29: 14 | C29: Peon Vigilante | D29: Peón Vigilante V | E29: Axel Augusto Lopez De León | F29: 15-2018-031-AMSA | G29: 2017-02-20 | H29: 75.64 | I29: 30 | J29: =H29*I29 -> 2269.2 | K29: 250 | L29: 435.6 | M29: 2954.8 | N29: 130.64 | O29: 0 | P29: 0 | Q29: 130.64 | R29: 2824.16 | S29: 3424051646
B30: 15 | C30: Peon Vigilante | D30: Peón Vigilante V | E30: Armando Roca Valdes | F30: 113-2018-031-AMSA | G30: 2018-02-01 | H30: 75.64 | I30: 30 | J30: 2269.2 | K30: 250 | L30: 435.6 | M30: 2954.8 | N30: 130.64 | O30: 0 | P30: 0 | Q30: 130.64 | R30: 2824.16 | S30: 03101300033657
B31: 16 | C31: Peon Vigilante | D31: Peón Vigilante V | E31: Jose Urias Muñoz | F31: 18-2018-031-AMSA | G31: 2017-02-20 | H31: 75.64 | I31: 30 | J31: =H31*I31 -> 2269.2 | K31: 250 | L31: 435.6 | M31: 2954.8 | N31: 130.64 | O31: 0 | P31: 0 | Q31: 130.64 | R31: 2824.16 | S31: 3137127054
B32: 17 | C32: Peon Vigilante | D32: Peón Vigilante V | E32: Henry Alejandro Ventura Hernandez | F32: 19-2018-031-AMSA | G32: 2017-02-20 | H32: 75.64 | I32: 30 | J32: 2269.2 | K32: 250 | L32: 435.6 | M32: 2954.8 | N32: 130.64 | O32: 0 | P32: 0 | Q32: 130.64 | R32: 2824.16 | S32: 3287039109
B33: 18 | C33: Peon Vigilante | D33: Peón Vigilante V | E33: Jorge Adán Arizandieta García | F33: 20-2018-031-AMSA | G33: 2017-02-20 | H33: 75.64 | I33: 30 | J33: 2269.2 | K33: 250 | L33: 435.6 | M33: 2954.8 | N33: 130.64 | O33: 0 | P33: 0 | Q33: 130.64 | R33: 2824.16 | S33: 3287038912
B34: 19 | C34: Peon Vigilante | D34: Peón Vigilante V | E34: Ricardo Arizandieta García | F34: 21-2018-031-AMSA | G34: 2017-02-20 | H34: 75.64 | I34: 30 | J34: 2269.2 | K34: 250 | L34: 435.6 | M34: 2954.8 | N34: 130.64 | O34: 0 | P34: 0 | Q34: 130.64 | R34: 2824.16 | S34: 3287038926
B35: 20 | D35: Peón Vigilante V | E35: Roberto Romero Peralta | F35: 22-2018-031-AMSA | G35: 2015-02-17 | H35: 75.64 | I35: 30 | J35: =H35*I35 -> 2269.2 | K35: 250 | L35: 435.6 | M35: 2954.8 | N35: =ROUND((J35+L35)*4.83%,2) -> 130.64 | O35: 0 | P35: 0 | Q35: =SUM(N35:P35) -> 130.64 | R35: =+M35-Q35 -> 2824.16 | S35: 3164072927
B36: 21 | C36: Peon Vigilante | D36: Peón | E36: Rutilia Gomez Lopez | F36: 23-2018-031-AMSA | G36: 2017-05-16 | H36: 71.4 | I36: 30 | J36: 2142 | K36: 250 | L36: =18.76*I36 -> 562.8 | M36: 2954.8 | N36: 130.64 | O36: 0 | P36: 0 | Q36: 130.64 | R36: 2824.16 | S36: 3153059040
F37: Totales | J37: =SUM(J16:J36) -> 46635.6 | K37: 5250 | L37: 10165.2 | M37: 62050.8 | N37: 2743.44 | O37: 0 | P37: 0 | Q37: 2743.44 | R37: 59307.36 | V37: =2909.96*21 -> 61109.16
B41: SUBPRODUCTO: CONTROL Y MANEJO DE LOS DESECHOS SÓLIDOS EN LA CUENCA DEL LAGO DE AMATITLÁN 001-002-0005
B42: 11130016-219-00-33-00-000-002-000-031-0115-11-0000-0000
B45: No. | C45: PUESTO | D45: Titulo Jornal Diario | E45: Empleado | F45: Contrato | G45: Fecha de Ingreso | H45: Jornal | I45: Días | J45: Renglón 031 | K45: Renglón 033 | L45: Renglón 033 | M45: Total Devengado Mensual | N45: Deducciones | Q45: Total Deducciones | R45: Liquido | S45: Número de Cuenta | U45: 0010 / 692 - UC RELLENO SANITARIO (004)
N46: 201 | O46: 211 | P46: 120
J47: Jornales | K47: Bono 66-2000 | L47: complemento específico por nivelación | N47: IGSS | O47: Retenciones Judiciales | P47: Decreto 81-70
B48: 1 | C48: Peón de Campo | D48: Peón | E48: Maynor de Jesús De León Dionicio | F48: 24-2018-031-AMSA | G48: 05/01/2015 | H48: 71.4 | I48: 30 | J48: =H48*I48 -> 2142 | K48: 250 | L48: =18.76*I48 -> 562.8 | M48: =SUM(J48:L48) -> 2954.8 | N48: =ROUND((J48+L48)*4.83%,2) -> 130.64 | O48: 0 | P48: 0 | Q48: =SUM(N48:P48) -> 130.64 | R48: =+M48-Q48 -> 2824.16 | S48: 3216010363
B49: 2 | D49: Peón | E49: Cecilio Antonio Vásquez Soto | F49: 25-2018-031-AMSA | G49: 2012-10-02 | H49: 71.4 | I49: 30 | J49: 2142 | K49: 250 | L49: 562.8 | M49: 2954.8 | N49: 130.64 | O49: 0 | P49: 0 | Q49: 130.64 | R49: 2824.16 | S49: 3532007563
B50: 3 | D50: Peón | E50: Rafael de Jesús Perea Peralta | F50: 26-2018-031-AMSA | G50: 01/01/2016 | H50: 71.4 | I50: 30 | J50: =H50*I50 -> 2142 | K50: 250 | L50: 562.8 | M50: =SUM(J50:L50) -> 2954.8 | N50: =ROUND((J50+L50)*4.83%,2) -> 130.64 | O50: 0 | P50: 0 | Q50: =SUM(N50:P50) -> 130.64 | R50: 2824.16 | S50: 3216008208
B51: 4 | D51: Peón | E51: José Filiberto Domingo Domingo | F51: 27-2018-031-AMSA | G51: 2006-01-02 | H51: 71.4 | I51: 30 | J51: =H51*I51 -> 2142 | K51: 250 | L51: 562.8 | M51: =SUM(J51:L51) -> 2954.8 | N51: =ROUND((J51+L51)*4.83%,2) -> 130.64 | O51: 0 | P51: 0 | Q51: =SUM(N51:P51) -> 130.64 | R51: 2824.16 | S51: 4216005864
B52: 5 | D52: Peón | E52: Domingo Sánchez Alonzo | F52: 55-2018-031-AMSA | G52: 2018-01-01 | H52: 71.4 | I52: 30 | J52: =H52*I52 -> 2142 | K52: 250 | L52: 562.8 | M52: =SUM(J52:L52) -> 2954.8 | N52: =ROUND((J52+L52)*4.83%,2) -> 130.64 | O52: 0 | P52: 0 | Q52: =SUM(N52:P52) -> 130.64 | R52: 2824.16 | S52: 3216034565
B53: 6 | D53: Peón | E53: Alber Asael Godínez Hernández | F53: 56-2018-031-AMSA | G53: 2018-01-01 | H53: 71.4 | I53: 30 | J53: 2142 | K53: 250 | L53: 562.8 | M53: 2954.8 | N53: 130.64 | O53: 0 | P53: 0 | Q53: 130.64 | R53: 2824.16 | S53: 3393002889
F54: Totales | J54: =SUM(J48:J53) -> 12852 | K54: 1500 | L54: 3376.8 | M54: 17728.8 | N54: 783.84 | O54: 0 | P54: 0 | Q54: 783.84 | R54: 16944.96
A60: SUBPRODUCTO: TRATAMIENTO DE LAS AGUAS RESIDUALES A TRÁVES DE LAS PLANTAS DE TRATAMIENTO A CARGO DE LA INSTITUCIÓN 001-002-0001
B61: 11130016-219-00-33-00-000-002-000-031-0115-11-0000-0000
B63: No. | C63: PUESTO | D63: Titulo Jornal Diario | E63: Empleado | F63: Contrato | G63: Fecha de Ingreso | H63: Jornal | I63: Días | J63: Renglón 031 | K63: Renglón 033 | L63: Renglón 033 | M63: Total Devengado Mensual | N63: Deducciones | Q63: Total Deducciones | R63: Liquido | S63: Número de Cuenta | U63: 0009 / 691 - UC PLANTAS DE TRATAMIENTO (003)
N64: 201 | O64: 211 | P64: 120
J65: Jornales | K65: Bono 66-2000 | L65: complemento específico por nivelación | N65: IGSS | O65: Retenciones Judiciales | P65: Decreto 81-70
B66: 1 | C66: Peon Vigilante | D66: Peón Vigilante V | E66: Werlington Jeffrey Robinzon Alvarado Hernandez | F66: 10-2018-031-AMSA | G66: 2017-02-20 | H66: 75.64 | I66: 30 | J66: =H66*I66 -> 2269.2 | K66: 250 | L66: =14.52*I66 -> 435.6 | M66: =SUM(J66:L66) -> 2954.8 | N66: =ROUND((J66+L66)*4.83%,2) -> 130.64 | O66: 0 | P66: 0 | Q66: =SUM(N66:P66) -> 130.64 | R66: =+M66-Q66 -> 2824.16 | S66: 3287038994
B67: 2 | C67: Operadores PTAR | D67: Peón | E67: Agustín López López | F67: 28-2018-031-AMSA | G67: 2007-01-02 | H67: 71.4 | I67: 30 | J67: =H67*I67 -> 2142 | K67: 250 | L67: =18.76*I67 -> 562.8 | M67: =SUM(J67:L67) -> 2954.8 | N67: =ROUND((J67+L67)*4.83%,2) -> 130.64 | O67: 0 | P67: 0 | Q67: =SUM(N67:P67) -> 130.64 | R67: =+M67-Q67 -> 2824.16 | S67: 3216004367
B68: 3 | C68: Operadores PTAR | D68: Peón | E68: Nelson Orlando Quiñonez Yohol | F68: 29-2018-031-AMSA | G68: 2005-02-01 | H68: 71.4 | I68: 30 | J68: 2142 | K68: 250 | L68: 562.8 | M68: 2954.8 | N68: 130.64 | O68: 0 | P68: 0 | Q68: 130.64 | R68: 2824.16 | S68: 3216001475
B69: 4 | C69: Operadores PTAR | D69: Peón | E69: Herculano Colmenar Estrada | F69: 30-2018-031-AMSA | G69: 2003-03-01 | H69: 71.4 | I69: 30 | J69: 2142 | K69: 250 | L69: 562.8 | M69: 2954.8 | N69: 130.64 | O69: 0 | P69: 0 | Q69: 130.64 | R69: 2824.16 | S69: 3216001439
B70: 5 | C70: Operadores PTAR | D70: Peón | E70: Guillermo Apolonio Chuc Mejía | F70: 31-2018-031-AMSA | G70: 2003-05-01 | H70: 71.4 | I70: 30 | J70: 2142 | K70: 250 | L70: 562.8 | M70: 2954.8 | N70: 130.64 | O70: 0 | P70: 0 | Q70: 130.64 | R70: 2824.16 | S70: 3216001493
B71: 6 | C71: Operadores PTAR | D71: Peón | E71: Marcelino Gómez Dávila | F71: 32-2018-031-AMSA | G71: 2003-03-01 | H71: 71.4 | I71: 30 | J71: 2142 | K71: 250 | L71: 562.8 | M71: 2954.8 | N71: 130.64 | O71: 0 | P71: 0 | Q71: 130.64 | R71: 2824.16 | S71: 4216002459
B72: 7 | C72: Peón de Campo | D72: Peón | E72: Héctor William Martínez Cabrera | F72: 33-2018-031-AMSA | G72: 2007-01-02 | H72: 71.4 | I72: 30 | J72: 2142 | K72: 250 | L72: 562.8 | M72: 2954.8 | N72: 130.64 | O72: 0 | P72: 0 | Q72: 130.64 | R72: 2824.16 | S72: 3216004486
B73: 8 | D73: Peón | E73: Abel Barillas Grajeda | F73: 34-2018-031-AMSA | G73: 2003-04-01 | H73: 71.4 | I73: 30 | J73: 2142 | K73: 250 | L73: 562.8 | M73: 2954.8 | N73: 130.64 | O73: 0 | P73: 0 | Q73: 130.64 | R73: 2824.16 | S73: 3216001443
A74: 58 | B74: 9 | D74: Peón | E74: Napoleon Canahui Pop | F74: 35-2018-031-AMSA | G74: 2017-06-01 | H74: 71.4 | I74: 30 | J74: =H74*I74 -> 2142 | K74: 250 | L74: 562.8 | M74: =SUM(J74:L74) -> 2954.8 | N74: =ROUND((J74+L74)*4.83%,2) -> 130.64 | O74: 0 | P74: 0 | Q74: =SUM(N74:P74) -> 130.64 | R74: 2824.16 | S74: 3287036524
B75: 10 | D75: Peón | E75: Calixto de Jesús Rodríguez Quintero | F75: 36-2018-031-AMSA | G75: 2016-01-01 | H75: 71.4 | I75: 30 | J75: 2142 | K75: 250 | L75: 562.8 | M75: 2954.8 | N75: 130.64 | O75: 0 | P75: 0 | Q75: 130.64 | R75: =+M75-Q75 -> 2824.16 | S75: 3153050750
B76: 11 | D76: Peón | E76: Wilber Celestino Gonzalez Guerra | F76: 37-2018-031-AMSA | G76: 2018-01-01 | H76: 71.4 | I76: 30 | J76: =H76*I76 -> 2142 | K76: 250 | L76: 562.8 | M76: =SUM(J76:L76) -> 2954.8 | N76: =ROUND((J76+L76)*4.83%,2) -> 130.64 | O76: 0 | P76: 0 | Q76: =SUM(N76:P76) -> 130.64 | R76: =+M76-Q76 -> 2824.16 | S76: 3287036510
B77: 12 | D77: Peón | E77: Alexis Rodolfo Gonzáles Avila | F77: 38-2018-031-AMSA | G77: 2018-01-01 | H77: 71.4 | I77: 30 | J77: 2142 | K77: 250 | L77: 562.8 | M77: 2954.8 | N77: 130.64 | O77: 0 | P77: 0 | Q77: 130.64 | R77: 2824.16 | S77: 3493030662
B78: 13 | D78: Peón | E78: Domingo Antonio Martínez Vásquez | F78: 39-2018-031-AMSA | G78: 2018-01-01 | H78: 71.4 | I78: 30 | J78: 2142 | K78: 250 | L78: 562.8 | M78: 2954.8 | N78: 130.64 | O78: 0 | P78: 0 | Q78: 130.64 | R78: 2824.16 | S78: 3229011703
B79: 14 | D79: Peón | E79: Juan Luis Hernández Hernández | F79: 40-2018-031-AMSA | G79: 2018-01-01 | H79: 71.4 | I79: 30 | J79: 2142 | K79: 250 | L79: 562.8 | M79: 2954.8 | N79: 130.64 | O79: 0 | P79: 0 | Q79: 130.64 | R79: 2824.16 | S79: 3229010483 | T79: 3229010483
B80: 15 | D80: Peón | E80: Carlos Augusto Secaida Hernández | F80: 41-2018-031-AMSA | G80: 2018-01-01 | H80: 71.4 | I80: 30 | J80: 2142 | K80: 250 | L80: 562.8 | M80: 2954.8 | N80: 130.64 | O80: 0 | P80: 0 | Q80: 130.64 | R80: 2824.16 | S80: 3287027181
B81: 16 | D81: Peón | E81: Juan José Rodas Rivas | F81: 42-2018-031-AMSA | G81: 2018-01-01 | H81: 71.4 | I81: 30 | J81: 2142 | K81: 250 | L81: 562.8 | M81: 2954.8 | N81: 130.64 | O81: 1100 | P81: 0 | Q81: 1230.64 | R81: 1724.16 | S81: 3216008414
B82: 17 | D82: Peón | E82: Alfredo Leonardo Bámaca | F82: 43-2018-031-AMSA | G82: 2018-01-01 | H82: 71.4 | I82: 30 | J82: 2142 | K82: 250 | L82: 562.8 | M82: 2954.8 | N82: 130.64 | O82: 0 | P82: 0 | Q82: 130.64 | R82: 2824.16 | S82: 3661014699
B83: 18 | D83: Peón | E83: Filiberto Antonio Pinto | F83: 44-2018-031-AMSA | G83: 2018-01-01 | H83: 71.4 | I83: 30 | J83: 2142 | K83: 250 | L83: 562.8 | M83: 2954.8 | N83: 130.64 | O83: 0 | P83: 0 | Q83: 130.64 | R83: 2824.16 | S83: 3287036657
B84: 19 | D84: Peón | E84: Billy Joel Fernández Guevara | F84: 46-2018-031-AMSA | G84: 2018-01-01 | H84: 71.4 | I84: 30 | J84: 2142 | K84: 250 | L84: 562.8 | M84: 2954.8 | N84: 130.64 | O84: 0 | P84: 0 | Q84: 130.64 | R84: 2824.16 | S84: 3137114532
B85: 20 | D85: Peón | E85: Héctor Vásquez Gómez | F85: 47-2018-031-AMSA | G85: 2018-01-01 | H85: 71.4 | I85: 30 | J85: 2142 | K85: 250 | L85: 562.8 | M85: 2954.8 | N85: 130.64 | O85: 0 | P85: 0 | Q85: 130.64 | R85: 2824.16 | S85: 3493048208
B86: 21 | D86: Peón | E86: Fidencio Monge Pérez | F86: 48-2018-031-AMSA | G86: 2018-01-01 | H86: 71.4 | I86: 30 | J86: 2142 | K86: 250 | L86: 562.8 | M86: 2954.8 | N86: 130.64 | O86: 0 | P86: 0 | Q86: 130.64 | R86: 2824.16 | S86: 3216036260
B87: 22 | D87: Peón | E87: Basilio Ordoñez Lares | F87: 49-2018-031-AMSA | G87: 2018-01-01 | H87: 71.4 | I87: 30 | J87: 2142 | K87: 250 | L87: 562.8 | M87: 2954.8 | N87: 130.64 | O87: 0 | P87: 0 | Q87: 130.64 | R87: 2824.16 | S87: 3759029670
B88: 23 | D88: Peón | E88: Québrin Humberto Romero Chinchilla | F88: 50-2018-031-AMSA | G88: 2018-01-01 | H88: 71.4 | I88: 30 | J88: 2142 | K88: 250 | L88: 562.8 | M88: 2954.8 | N88: 130.64 | O88: 0 | P88: 0 | Q88: 130.64 | R88: 2824.16 | S88: 3628011282
B89: 24 | D89: Peón | E89: Inocente Byron Pineda Dionicio | F89: 52-2018-031-AMSA | G89: 2018-01-01 | H89: 71.4 | I89: 30 | J89: 2142 | K89: 250 | L89: 562.8 | M89: 2954.8 | N89: 130.64 | O89: 0 | P89: 0 | Q89: 130.64 | R89: 2824.16 | S89: 3216003437
B90: 25 | D90: Peón | E90: Flavio Alí Alonso Gil | F90: 53-2018-031-AMSA | G90: 2002-01-02 | H90: 71.4 | I90: 30 | J90: 2142 | K90: 250 | L90: 562.8 | M90: 2954.8 | N90: 130.64 | O90: 670 | P90: 0 | Q90: 800.64 | R90: 2154.16 | S90: 3216001631
B91: 26 | D91: Peón | E91: Carlos Fernando Tello Valdez | F91: 54-2018-031-AMSA | G91: 2002-01-02 | H91: 71.4 | I91: 30 | J91: 2142 | K91: 250 | L91: 562.8 | M91: 2954.8 | N91: 130.64 | O91: 0 | P91: 0 | Q91: 130.64 | R91: 2824.16 | S91: 4216002514
F92: Totales | J92: =SUM(J66:J91) -> 55819.2 | K92: 6500 | L92: 14505.6 | M92: 76824.8 | N92: 3396.64 | O92: 1770 | P92: 0 | Q92: 5166.64 | R92: 71658.16
B109: SUBPRODUCTO: VOLUMEN DE DESECHOS SÓLIDOS FLOTANTES Y PLANTAS ACUÁTICAS EXTRAÍDOS DEL LAGO DE AMATITLÁN 001-002-0002
B110: 11130016-219-00-33-00-000-002-000-031-0115-11-0000-0000
B112: No. | C112: PUESTO | D112: Titulo Jornal Diario | E112: Empleado | F112: Contrato | G112: Fecha de Ingreso | H112: Jornal | I112: Días | J112: Renglón 031 | K112: Renglón 033 | L112: Renglón 033 | M112: Total Devengado Mensual | N112: Deducciones | Q112: Total Deducciones | R112: Liquido | S112: Número de Cuenta | U112: 0006 / 628 - UC LIMPIEZA DEL LAGO (002)
N113: 201 | O113: 211 | P113: 120
J114: Jornales | K114: Bono 66-2000 | L114: complemento específico por nivelación | N114: IGSS | O114: Retenciones Judiciales | P114: Decreto 81-70
B115: 1 | D115: Peón | E115: Roberto Leonel González Miguel | F115: 51-2018-031-AMSA | G115: 2018-01-01 | H115: 71.4 | I115: 30 | J115: =H115*I115 -> 2142 | K115: 250 | L115: =18.76*I115 -> 562.8 | M115: =SUM(J115:L115) -> 2954.8 | N115: =ROUND((J115+L115)*4.83%,2) -> 130.64 | O115: 0 | P115: 0 | Q115: =SUM(N115:P115) -> 130.64 | R115: =+M115-Q115 -> 2824.16 | S115: 3216033718
B116: 2 | C116: Operario de Maquinaria | D116: Peón | E116: Gerver Oswaldo Suruy Estupe | F116: 57-2018-031-AMSA | G116: 2007-01-02 | H116: 71.4 | I116: 30 | J116: =H116*I116 -> 2142 | K116: 250 | L116: 562.8 | M116: =SUM(J116:L116) -> 2954.8 | N116: =ROUND((J116+L116)*4.83%,2) -> 130.64 | O116: 0 | P116: 0 | Q116: =SUM(N116:P116) -> 130.64 | R116: =+M116-Q116 -> 2824.16 | S116: 3216003318
B117: 3 | C117: Lanchero | D117: Peón | E117: Andrés Payes Rodríguez | F117: 58-2018-031-AMSA | G117: 2002-01-02 | H117: 71.4 | I117: 30 | J117: =H117*I117 -> 2142 | K117: 250 | L117: 562.8 | M117: =SUM(J117:L117) -> 2954.8 | N117: =ROUND((J117+L117)*4.83%,2) -> 130.64 | O117: 800 | P117: 0 | Q117: =SUM(N117:P117) -> 930.64 | R117: =+M117-Q117 -> 2024.16 | S117: 3216001700
B118: 4 | C118: Peón de Campo | D118: Peón | E118: Ignacio Seijas Sequen | F118: 59-2018-031-AMSA | G118: 2006-01-02 | H118: 71.4 | I118: 30 | J118: 2142 | K118: 250 | L118: 562.8 | M118: 2954.8 | N118: 130.64 | O118: 0 | P118: 0 | Q118: 130.64 | R118: 2824.16 | S118: 3234009071
B119: 5 | C119: Peón de Campo | D119: Peón | E119: Mario Arturo Sigüenza | F119: 60-2018-031-AMSA | G119: 2003-08-01 | H119: 71.4 | I119: 30 | J119: 2142 | K119: 250 | L119: 562.8 | M119: 2954.8 | N119: 130.64 | O119: 0 | P119: 0 | Q119: 130.64 | R119: 2824.16 | S119: 3216001801
B120: 6 | C120: Encargado de Oxigenadores | D120: Peón | E120: Jesús Antonio Montúfar Mazariegos | F120: 61-2018-031-AMSA | G120: 2007-05-02 | H120: 71.4 | I120: 30 | J120: 2142 | K120: 250 | L120: 562.8 | M120: 2954.8 | N120: 130.64 | O120: 0 | P120: 0 | Q120: 130.64 | R120: 2824.16 | S120: 3164031580
B121: 7 | C121: Peón de Campo | D121: Peón | E121: Carlos Humberto Gatica González | F121: 62-2018-031-AMSA | G121: 2007-05-16 | H121: 71.4 | I121: 30 | J121: 2142 | K121: 250 | L121: 562.8 | M121: 2954.8 | N121: 130.64 | O121: 0 | P121: 0 | Q121: 130.64 | R121: 2824.16 | S121: 4216002528
B122: 8 | C122: Peón de Campo | D122: Peón | E122: Nery Armando Castañeda Avilés | F122: 63-2018-031-AMSA | G122: 2008-06-09 | H122: 71.4 | I122: 30 | J122: 2142 | K122: 250 | L122: 562.8 | M122: 2954.8 | N122: 130.64 | O122: 0 | P122: 0 | Q122: 130.64 | R122: 2824.16 | S122: 3164034252
B123: 9 | C123: Peón de Campo | D123: Peón | E123: Yury Geovani Guzmán Avilés | F123: 64-2018-031-AMSA | G123: 2010-01-02 | H123: 71.4 | I123: 30 | J123: 2142 | K123: 250 | L123: 562.8 | M123: 2954.8 | N123: 130.64 | O123: 0 | P123: 0 | Q123: 130.64 | R123: 2824.16 | S123: 3216001645
B124: 10 | D124: Peón | E124: Cosmen Vitalino Obando Montenegro | F124: 65-2018-031-AMSA | G124: 2007-01-02 | H124: 71.4 | I124: 30 | J124: 2142 | K124: 250 | L124: 562.8 | M124: 2954.8 | N124: 130.64 | O124: 0 | P124: 0 | Q124: 130.64 | R124: 2824.16 | S124: 3216004490
B125: 11 | D125: Peón | E125: Juan Antonio Roque Dionisio | F125: 66-2018-031-AMSA | G125: 2007-01-02 | H125: 71.4 | I125: 30 | J125: 2142 | K125: 250 | L125: 562.8 | M125: 2954.8 | N125: 130.64 | O125: 0 | P125: 0 | Q125: 130.64 | R125: 2824.16 | S125: 3216004353
B126: 12 | D126: Peón | E126: Marlon Geovani Arizandieta Arroyo | F126: 67-2018-031-AMSA | G126: 2013-02-01 | H126: 71.4 | I126: 30 | J126: 2142 | K126: 250 | L126: 562.8 | M126: 2954.8 | N126: 130.64 | O126: 0 | P126: 0 | Q126: 130.64 | R126: 2824.16 | S126: 3216001627
B127: 13 | D127: Peón | E127: Erik Leonel Quixaj Ortiz | F127: 68-2018-031-AMSA | G127: 2017-01-01 | H127: 71.4 | I127: 30 | J127: 2142 | K127: 250 | L127: 562.8 | M127: 2954.8 | N127: 130.64 | O127: 0 | P127: 0 | Q127: 130.64 | R127: 2824.16 | S127: 3164003073
B128: 14 | D128: Conserje | E128: Reyna Elizabeth Toc Choz | F128: 69-2018-031-AMSA | G128: 2014-07-14 | H128: 71.4 | I128: 30 | J128: =H128*I128 -> 2142 | K128: 250 | L128: 562.8 | M128: =SUM(J128:L128) -> 2954.8 | N128: =ROUND((J128+L128)*4.83%,2) -> 130.64 | O128: 0 | P128: 0 | Q128: =SUM(N128:P128) -> 130.64 | R128: 2824.16 | S128: 3247011971
B129: 15 | D129: Peón | E129: José Luis Arizandieta Cabrera | F129: 70-2018-031-AMSA | G129: 2016-01-01 | H129: 71.4 | I129: 30 | J129: =H129*I129 -> 2142 | K129: 250 | L129: 562.8 | M129: =SUM(J129:L129) -> 2954.8 | N129: =ROUND((J129+L129)*4.83%,2) -> 130.64 | O129: 0 | P129: 0 | Q129: =SUM(N129:P129) -> 130.64 | R129: =+M129-Q129 -> 2824.16 | S129: 3229010497
B130: 16 | D130: Peón | E130: Jorge Eduardo López Ramírez | F130: 71-2018-031-AMSA | G130: 2018-01-01 | H130: 71.4 | I130: 30 | J130: =H130*I130 -> 2142 | K130: 250 | L130: 562.8 | M130: =SUM(J130:L130) -> 2954.8 | N130: =ROUND((J130+L130)*4.83%,2) -> 130.64 | O130: 0 | P130: 0 | Q130: =SUM(N130:P130) -> 130.64 | R130: =+M130-Q130 -> 2824.16 | S130: 3815003829
B131: 17 | D131: Peón | E131: Samuel Acabal Ajbac | F131: 72-2018-031-AMSA | G131: 2018-01-01 | H131: 71.4 | I131: 30 | J131: 2142 | K131: 250 | L131: 562.8 | M131: 2954.8 | N131: 130.64 | O131: 0 | P131: 0 | Q131: 130.64 | R131: 2824.16 | S131: 3225014368
B132: 18 | D132: Peón | E132: Esvin Daniel Ramirez Pineda | F132: 73-2018-031-AMSA | G132: 2018-01-01 | H132: 71.4 | I132: 30 | J132: 2142 | K132: 250 | L132: 562.8 | M132: 2954.8 | N132: 130.64 | O132: 0 | P132: 0 | Q132: 130.64 | R132: 2824.16 | S132: 3164073417
B133: 19 | D133: Peón | E133: Jefry Antonio Paiz Díaz | F133: 74-2018-031-AMSA | G133: 2018-01-01 | H133: 71.4 | I133: 30 | J133: 2142 | K133: 250 | L133: 562.8 | M133: 2954.8 | N133: 130.64 | O133: 0 | P133: 0 | Q133: 130.64 | R133: 2824.16 | S133: 3164073908
B134: 20 | D134: Peón | E134: Edie Stuardo García Velásquez | F134: 75-2018-031-AMSA | G134: 2018-01-01 | H134: 71.4 | I134: 30 | J134: 2142 | K134: 250 | L134: 562.8 | M134: 2954.8 | N134: 130.64 | O134: 0 | P134: 0 | Q134: 130.64 | R134: 2824.16 | S134: 3287036831
B135: 21 | D135: Peón | E135: Bernardino Alistún Cachín | F135: 76-2018-031-AMSA | G135: 2018-01-01 | H135: 71.4 | I135: 30 | J135: 2142 | K135: 250 | L135: 562.8 | M135: 2954.8 | N135: 130.64 | O135: 0 | P135: 0 | Q135: 130.64 | R135: 2824.16 | S135: 3287036813
B136: 22 | D136: Peón | E136: Epimenio Nehemias Arroyo Telon | F136: 78-2018-031-AMSA | G136: 2018-01-01 | H136: 71.4 | I136: 30 | J136: 2142 | K136: 250 | L136: 562.8 | M136: 2954.8 | N136: 130.64 | O136: 0 | P136: 0 | Q136: 130.64 | R136: 2824.16 | S136: 3229056994
F137: Totales | J137: =SUM(J115:J136) -> 47124 | K137: 5500 | L137: 12381.6 | M137: 65005.6 | N137: 2874.08 | O137: 800 | P137: 0 | Q137: 3674.08 | R137: 61331.52
B140: SUBPRODUCTO: REFORESTACIÓN Y MANTENIMIENTO DE ÁREAS EN LA CUENCA DEL LAGO DE AMATITLÁN 001-008-0008
B141: 11130016-219-00-33-00-000-005-000-031-0115-11-0000-0000
B143: No. | C143: PUESTO | D143: Titulo Jornal Diario | E143: Empleado | F143: Contrato | G143: Fecha de Ingreso | H143: Jornal | I143: Días | J143: Renglón 031 | K143: Renglón 033 | L143: Renglón 033 | M143: Total Devengado Mensual | N143: Deducciones | Q143: Total Deducciones | R143: Liquido | S143: Número de Cuenta | V143: 0005 / 346 - UC REFORESTACIÓN (008)
N144: 201 | O144: 211 | P144: 120
J145: Jornales | K145: Bono 66-2000 | L145: complemento específico por nivelación | N145: IGSS | O145: Retenciones Judiciales | P145: Decreto 81-70
B146: 1 | D146: Jardinero II | E146: José Abel Chamalé Par | F146: 77-2018-031-AMSA | G146: 2018-01-01 | H146: 72.54 | I146: 30 | J146: =H146*I146 -> 2176.2 | K146: 250 | L146: =17.62*I146 -> 528.6 | M146: =SUM(J146:L146) -> 2954.8 | N146: =ROUND((J146+L146)*4.83%,2) -> 130.64 | O146: 0 | Q146: =SUM(N146:P146) -> 130.64 | R146: =+M146-Q146 -> 2824.16 | S146: 3164078632 | U146: =90.16-72.54 -> 17.62
B147: 2 | D147: Jardinero II | E147: Esvin Leonel Rivera Pineda | F147: 79-2018-031-AMSA | G147: 2014-02-17 | H147: 72.54 | I147: 30 | J147: =H147*I147 -> 2176.2 | K147: 250 | L147: =17.62*I147 -> 528.6 | M147: =SUM(J147:L147) -> 2954.8 | N147: =ROUND((J147+L147)*4.83%,2) -> 130.64 | O147: 0 | Q147: =SUM(N147:P147) -> 130.64 | R147: =+M147-Q147 -> 2824.16 | S147: 3216001659
B148: 3 | C148: Peón de Campo | D148: Jardinero II | E148: José Alberto Rucal | F148: 80-2018-031-AMSA | G148: 2002-01-02 | H148: 72.54 | I148: 30 | J148: 2176.2 | K148: 250 | L148: 528.6 | M148: 2954.8 | N148: 130.64 | O148: 0 | Q148: 130.64 | R148: 2824.16 | S148: 3216001457 | U148: NACIONES UNIDAS
B149: 4 | C149: Peón de Campo | D149: Jardinero II | E149: Julio Roberto Martínez Aguilar | F149: 81-2018-031-AMSA | G149: 2002-01-02 | H149: 72.54 | I149: 30 | J149: 2176.2 | K149: 250 | L149: 528.6 | M149: 2954.8 | N149: 130.64 | O149: 0 | Q149: 130.64 | R149: 2824.16 | S149: 3216001695
B150: 5 | C150: Peón de Campo | D150: Jardinero II | E150: Juan Emilio Cruz De León | F150: 82-2018-031-AMSA | G150: 2015-01-05 | H150: 72.54 | I150: 30 | J150: 2176.2 | K150: 250 | L150: 528.6 | M150: 2954.8 | N150: 130.64 | O150: 0 | Q150: 130.64 | R150: 2824.16 | S150: 3216001920
B151: 6 | C151: Peón de Campo | D151: Jardinero II | E151: Emilio Taque Carranza | F151: 83-2018-031-AMSA | G151: 2013-01-02 | H151: 72.54 | I151: 30 | J151: 2176.2 | K151: 250 | L151: 528.6 | M151: 2954.8 | N151: 130.64 | O151: 0 | Q151: 130.64 | R151: 2824.16 | S151: 3216004468
B152: 7 | C152: Peón de Campo | D152: Jardinero II | E152: Rigoberto de Jesús Osorio Morataya | F152: 84-2018-031-AMSA | G152: 2007-09-01 | H152: 72.54 | I152: 30 | J152: 2176.2 | K152: 250 | L152: 528.6 | M152: 2954.8 | N152: 130.64 | O152: 0 | Q152: 130.64 | R152: 2824.16 | S152: 3164033390
B153: 8 | C153: Peón de Campo | D153: Jardinero II | E153: Manuel de Jesús Coy Malín | F153: 85-2018-031-AMSA | G153: 2002-01-02 | H153: 72.54 | I153: 30 | J153: 2176.2 | K153: 250 | L153: 528.6 | M153: 2954.8 | N153: 130.64 | O153: 0 | Q153: 130.64 | R153: 2824.16 | S153: 3216001728
B154: 9 | C154: Peón de Campo | D154: Jardinero II | E154: Francisco Javier Rivera Orellana | F154: 86-2018-031-AMSA | G154: 2004-07-07 | H154: 72.54 | I154: 30 | J154: 2176.2 | K154: 250 | L154: 528.6 | M154: 2954.8 | N154: 130.64 | O154: 0 | Q154: 130.64 | R154: 2824.16 | S154: 3216001916 | U154: NACIONES UNIDAS
B155: 10 | C155: Peón de Campo | D155: Jardinero II | E155: Fermín Hernández Martinez | F155: 87-2018-031-AMSA | G155: 2002-02-01 | H155: 72.54 | I155: 30 | J155: 2176.2 | K155: 250 | L155: 528.6 | M155: 2954.8 | N155: 130.64 | O155: 0 | Q155: 130.64 | R155: 2824.16 | S155: 4216002596 | U155: NACIONES UNIDAS
B162: 11 | C162: Peón de Campo | D162: Jardinero II | E162: Víctor Manuel López Rodríguez | F162: 88-2018-031-AMSA | G162: 2005-02-01 | H162: 72.54 | I162: 30 | J162: 2176.2 | K162: 250 | L162: 528.6 | M162: 2954.8 | N162: 130.64 | O162: 0 | Q162: 130.64 | R162: 2824.16 | S162: 3216001865
B163: 12 | C163: Piloto | D163: Jardinero II | E163: Cosme Virgilio Morales Rodríguez | F163: 89-2018-031-AMSA | G163: 2005-01-03 | H163: 72.54 | I163: 30 | J163: 2176.2 | K163: 250 | L163: 528.6 | M163: 2954.8 | N163: 130.64 | O163: 0 | Q163: 130.64 | R163: 2824.16 | S163: 3216001829
B164: 13 | C164: Peón de Campo | D164: Jardinero II | E164: Carlos Alberto Morales Contreras | F164: 90-2018-031-AMSA | G164: 2005-01-03 | H164: 72.54 | I164: 30 | J164: 2176.2 | K164: 250 | L164: 528.6 | M164: 2954.8 | N164: 130.64 | O164: 0 | Q164: 130.64 | R164: 2824.16 | S164: 3216001833 | U164: NACIONES UNIDAS
B165: 14 | C165: Peón de Campo | D165: Jardinero II | E165: Miguel Ángel Ramos Luis | F165: 91-2018-031-AMSA | G165: 2002-02-12 | H165: 72.54 | I165: 30 | J165: 2176.2 | K165: 250 | L165: 528.6 | M165: 2954.8 | N165: 130.64 | O165: 0 | Q165: 130.64 | R165: 2824.16 | S165: 3216001851 | U165: NACIONES UNIDAS
B166: 15 | C166: Peón de Campo | D166: Jardinero II | E166: Felipe Santiago Carreto | F166: 92-2018-031-AMSA | G166: 2006-01-03 | H166: 72.54 | I166: 30 | J166: 2176.2 | K166: 250 | L166: 528.6 | M166: 2954.8 | N166: 130.64 | O166: 0 | Q166: 130.64 | R166: 2824.16 | S166: 4216008623 | U166: NACIONES UNIDAS
B167: 16 | D167: Jardinero II | E167: Custodio Quiñonez Morataya | F167: 93-2018-031-AMSA | G167: 2015-11-03 | H167: 72.54 | I167: 30 | J167: 2176.2 | K167: 250 | L167: 528.6 | M167: 2954.8 | N167: 130.64 | O167: 0 | Q167: 130.64 | R167: 2824.16 | S167: 3164030412
B168: 17 | D168: Jardinero II | E168: Sotero Chocón Vargas | F168: 94-2018-031-AMSA | G168: 2018-01-01 | H168: 72.54 | I168: 30 | J168: 2176.2 | K168: 250 | L168: 528.6 | M168: 2954.8 | N168: 130.64 | O168: 0 | Q168: 130.64 | R168: 2824.16 | S168: 3164079920
B169: 18 | D169: Jardinero II | E169: José Muñoz Chávez | F169: 95-2018-031-AMSA | G169: 2016-01-01 | H169: 72.54 | I169: 30 | J169: 2176.2 | K169: 250 | L169: 528.6 | M169: 2954.8 | N169: 130.64 | O169: 0 | Q169: 130.64 | R169: 2824.16 | S169: 3229011973
B170: 19 | D170: Jardinero II | E170: Víctor Vicente Paredes González | F170: 96-2018-031-AMSA | G170: 2016-01-01 | H170: 72.54 | I170: 30 | J170: 2176.2 | K170: 250 | L170: 528.6 | M170: 2954.8 | N170: 130.64 | O170: 0 | Q170: 130.64 | R170: 2824.16 | S170: 3287008934
B171: 20 | D171: Jardinero II | E171: Antonio Coy Hernandez | F171: 97-2018-031-AMSA | G171: 2016-01-01 | H171: 72.54 | I171: 30 | J171: 2176.2 | K171: 250 | L171: 528.6 | M171: 2954.8 | N171: 130.64 | O171: 0 | Q171: 130.64 | R171: 2824.16 | S171: 3287036198
B172: 21 | D172: Jardinero II | E172: Vitelio Catalan Ovando | F172: 98-2018-031-AMSA | G172: 2016-01-01 | H172: 72.54 | I172: 30 | J172: 2176.2 | K172: 250 | L172: 528.6 | M172: 2954.8 | N172: 130.64 | O172: 0 | Q172: 130.64 | R172: 2824.16 | S172: 3164074549
B173: 22 | D173: Jardinero II | E173: Ovidio Lizandro Alburez Martínez | F173: 99-2018-031-AMSA | G173: 2018-01-01 | H173: 72.54 | I173: 30 | J173: 2176.2 | K173: 250 | L173: 528.6 | M173: 2954.8 | N173: 130.64 | O173: 0 | Q173: 130.64 | R173: 2824.16 | S173: 3164029306
B174: 23 | D174: Jardinero II | E174: Rafael Rodríguez López | F174: 100-2018-031-AMSA | G174: 2018-01-01 | H174: 72.54 | I174: 30 | J174: 2176.2 | K174: 250 | L174: 528.6 | M174: 2954.8 | N174: 130.64 | O174: 0 | Q174: 130.64 | R174: 2824.16 | S174: 3164041601
B175: 24 | D175: Jardinero II | E175: Sixto Emmanuel Hernández Hernández | F175: 101-2018-031-AMSA | G175: 2018-01-01 | H175: 72.54 | I175: 30 | J175: 2176.2 | K175: 250 | L175: 528.6 | M175: 2954.8 | N175: 130.64 | O175: 0 | Q175: 130.64 | R175: 2824.16 | S175: 3164072945
B176: 25 | D176: Jardinero II | E176: Vilmer Antonio Jimenez Choma | F176: 102-2018-031-AMSA | G176: 2018-01-01 | H176: 72.54 | I176: 30 | J176: 2176.2 | K176: 250 | L176: 528.6 | M176: 2954.8 | N176: 130.64 | O176: 0 | Q176: 130.64 | R176: 2824.16 | S176: 3287032954
B177: 26 | D177: Jardinero II | E177: Gabriel de Jesús Morales Pineda | F177: 103-2018-031-AMSA | G177: 2018-01-01 | H177: 72.54 | I177: 30 | J177: 2176.2 | K177: 250 | L177: 528.6 | M177: 2954.8 | N177: 130.64 | O177: 0 | Q177: 130.64 | R177: 2824.16 | S177: 3654013124
B178: 27 | D178: Jardinero II | E178: Adan Crispín | F178: 104-2018-031-AMSA | G178: 2018-01-01 | H178: 72.54 | I178: 30 | J178: 2176.2 | K178: 250 | L178: 528.6 | M178: 2954.8 | N178: 130.64 | O178: 0 | Q178: 130.64 | R178: 2824.16 | S178: 3164072894
B179: 28 | D179: Jardinero II | E179: Fredy Leonidas Domínguez Ortiz | F179: 105-2018-031-AMSA | G179: 2018-01-01 | H179: 72.54 | I179: 30 | J179: 2176.2 | K179: 250 | L179: 528.6 | M179: 2954.8 | N179: 130.64 | O179: 0 | Q179: 130.64 | R179: 2824.16 | S179: 3287032867
B180: 29 | D180: Jardinero II | E180: Vicente Orlando Escobar Estupe | F180: 106-2018-031-AMSA | G180: 2018-01-01 | H180: 72.54 | I180: 30 | J180: 2176.2 | K180: 250 | L180: 528.6 | M180: 2954.8 | N180: 130.64 | O180: 0 | Q180: 130.64 | R180: 2824.16 | S180: 3686024851
B181: 30 | D181: Jardinero II | E181: Carlos Humberto Arizandieta Cabrera | F181: 107-2018-031-AMSA | G181: 2018-01-01 | H181: 72.54 | I181: 30 | J181: 2176.2 | K181: 250 | L181: 528.6 | M181: 2954.8 | N181: 130.64 | O181: 0 | Q181: 130.64 | R181: 2824.16 | S181: 3229052425
B182: 31 | D182: Jardinero II | E182: Gerardo Macolás Marroquín | F182: 108-2018-031-AMSA | G182: 2018-01-01 | H182: 72.54 | I182: 30 | J182: 2176.2 | K182: 250 | L182: 528.6 | M182: 2954.8 | N182: 130.64 | O182: 0 | Q182: 130.64 | R182: 2824.16 | S182: 3229011717
B183: 32 | D183: Jardinero II | E183: Teodoro Quexel Lopez | F183: 109-2018-031-AMSA | G183: 2018-01-01 | H183: 72.54 | I183: 30 | J183: 2176.2 | K183: 250 | L183: 528.6 | M183: 2954.8 | N183: 130.64 | O183: 0 | Q183: 130.64 | R183: 2824.16 | S183: 3287038930
B184: 33 | D184: Jardinero II | E184: Julio Rodolfo Nixón García Ramírez | F184: 110-2018-031-AMSA | G184: 2018-01-01 | H184: 72.54 | I184: 30 | J184: 2176.2 | K184: 250 | L184: 528.6 | M184: 2954.8 | N184: 130.64 | O184: 0 | Q184: 130.64 | R184: 2824.16 | S184: 3661012641
B185: 34 | D185: Jardinero II | E185: Neri Antonio Hernández Osorio | F185: 111-2018-031-AMSA | G185: 2018-01-01 | H185: 72.54 | I185: 30 | J185: 2176.2 | K185: 250 | L185: 528.6 | M185: 2954.8 | N185: 130.64 | O185: 0 | Q185: 130.64 | R185: 2824.16 | S185: 3164040395
B186: 35 | D186: Jardinero II | E186: Mauro Romeo González Quezada | F186: 112-2018-031-AMSA | G186: 2018-01-01 | H186: 72.54 | I186: 30 | J186: 2176.2 | K186: 250 | L186: 528.6 | M186: 2954.8 | N186: 130.64 | O186: 0 | Q186: 130.64 | R186: 2824.16 | S186: 3164079984
F187: Totales | J187: =SUM(J146:J186) -> 76167 | K187: 8750 | L187: 18501 | M187: 103418 | N187: 4572.4 | O187: 0 | P187: =SUM(P146:P186) -> 0 | Q187: 4572.4 | R187: =SUM(R146:R186) -> 98845.6
J190: Renglón 031 | K190: Renglón 033 | L190: Renglón 033 | M190: Total Devengado Mensual | N190: Deducciones | Q190: Total Deducciones | R190: Liquido
N191: 201 | O191: 211 | P191: 120
B192: TOTAL NÓMINA | J192: Jornales | K192: Bono 66-2000 | L192: complemento específico por nivelación | N192: IGSS | O192: Retenciones Judiciales | P192: Decreto 81-70
J193: =+J187+J137+J92+J54+J37 -> 238597.8 | K193: 27500 | L193: 58930.2 | M193: 325028 | N193: 14370.4 | O193: 2570 | P193: 0 | Q193: 16940.4 | R193: 308087.6

Sheet POLICIAS
A2: AUTORIDAD PARA EL MANEJO SUSTENTABLE DE LA CUENCA Y DEL LAGO DE AMATITLÁN
A3: NOMINA CORRESPONDIENTE AL MES DE ABRIL 2018
A4: NÚMERO 14-2018
B5: RENGLÓN 031 "JORNALES"
C7: SOLICITUD DE PAGO
A9: SUBPRODUCTO: DIRECCIÓN Y COORDINACIÓN 001-001-0001
B10: 11130016-219-00-33-00-000-001-000-031-0115-11-0000-0000
B14: No. | C14: Titulo Jornal Diario | D14: Empleado | E14: Contrato | F14: Fecha de Ingreso | G14: Jornal | H14: Días | I14: Renglón 031 | J14: Renglón 033 | K14: Renglón 033 | L14: Total Devengado Mensual | M14: Deducciones | P14: Total Deducciones | Q14: Liquido | R14: Número de Cuenta G&T
M15: 201 | N15: 211 | O15: 120
I16: Jornales | J16: Bono 66-2000 | K16: complemento específico por nivelación | M16: IGSS | N16: Retenciones Judiciales | O16: Decreto 81-70
B17: 1 | C17: Peon Vigilante V | D17: José Luis Perpuac Gómez | E17: 17-2018-031-AMSA | F17: 2017-02-20 | G17: 75.64 | H17: 30 | I17: =G17*H17 -> 2269.2 | J17: 250 | K17: =14.52*H17 -> 435.6 | L17: =SUM(I17:K17) -> 2954.8 | M17: =ROUND((I17+K17)*4.83%,2) -> 130.64 | N17: 0 | O17: 0 | P17: =SUM(M17:O17) -> 130.64 | Q17: =+L17-P17 -> 2824.16 | R17: 0430010569-2
C23: Realizó: | E23: Revisó: | M23: Vo.Bo.
F24: Víctor Anibal López Aquino | N24: Ing. Oscar Amed Juárez Sosa
F25: Jefe Administrativo Financiero | N25: Director Ejecutivo
F26: AMSA | N26: AMSA
